fUSD/lending_fUSD_20250629
["ID","MTS","AMOUNT","RATE_DAILY","PERIOD"]
[368457681,1751182301433,-1207.44,0.00028825,3]
[368457682,1751182301443,-1001.03,0.00028825,3]
[368457683,1751182301453,-490.0,0.00028825,3]
[368457684,1751182301462,-1139.8,0.00028825,3]
[368457685,1751182301472,-2010.41,0.00028825,3]
[368457686,1751182301481,-1023.05,0.00028825,3]
[368457687,1751182301490,-490.0,0.00028825,3]
[368457688,1751182301500,-3188.56,0.00028825,3]
[368457689,1751182301510,-490.0,0.00028825,3]
[368457690,1751182301520,-490.0,0.00028825,3]
[368457691,1751182301530,-1542.42,0.00028825,3]
[368457692,1751182301539,-490.0,0.00028825,3]
[368457693,1751182301548,-490.0,0.00028825,3]
[368457694,1751182301558,-1406.31,0.00028825,3]
[368457695,1751182301568,-642.92,0.00028825,3]
[368457696,1751182301578,-691.64,0.00028825,3]
[368457697,1751182301587,-490.0,0.00028825,3]
[368457698,1751182301597,-1367.44,0.00028825,3]
[368457699,1751182301607,-940.99,0.00028825,3]
[368457700,1751182301616,-490.0,0.00028825,3]
[368457701,1751182301626,-490.0,0.00028825,3]
[368457702,1751182301636,-2991.05,0.00028825,3]
[368457703,1751182301645,-490.0,0.00028825,3]
[368457704,1751182301655,-881.32,0.00028825,3]
[368457705,1751182301665,-2342.8,0.00028825,3]
[368457706,1751182301674,-150.0,0.00028828,2]
[368457707,1751182301684,-150.0,0.00028832,2]
[368457708,1751182301694,-150.0,0.00028834,2]
[368457709,1751182301703,-508.16626788,0.00028835,3]
[368457710,1751182301712,-490.0,0.00028835,3]
[368457711,1751182301722,-508.08,0.00028835,3]
[368457712,1751182301731,-604.29,0.00028835,3]
[368457713,1751182301741,-490.0,0.00028835,3]
[368457714,1751182301750,-662.65,0.00028835,3]
[368457715,1751182301760,-490.0,0.00028835,3]
[368457716,1751182301769,-490.0,0.00028835,3]
[368457717,1751182301778,-530.55,0.00028835,3]
[368457718,1751182301787,-490.0,0.00028835,3]
[368457719,1751182301797,-490.0,0.00028835,3]
[368457720,1751182301807,-490.0,0.00028835,3]
[368457721,1751182301816,-490.0,0.00028835,3]
[368457722,1751182301828,-899.8,0.00028835,3]
[368457723,1751182301837,-490.0,0.00028835,3]
[368457724,1751182301847,-490.0,0.00028835,3]
[368457725,1751182301857,-490.0,0.00028835,3]
[368457726,1751182301866,-493.73,0.00028835,3]
[368457727,1751182301875,-480.71919683,0.00028835,3]
[368457728,1751182301885,-490.0,0.00028835,3]
[368457729,1751182301894,-490.0,0.00028835,3]
[368457730,1751182301903,-1215.98,0.00028835,3]
[368457731,1751182301913,-490.0,0.00028835,3]
[368457732,1751182301923,-490.0,0.00028835,3]
[368457733,1751182301932,-490.0,0.00028835,3]
[368457734,1751182301941,-1152.7,0.00028835,3]
[368457735,1751182301951,-490.0,0.00028835,3]
[368457736,1751182301960,-600.6,0.00028835,3]
[368457737,1751182301970,-1773.87,0.00028835,3]
[368457738,1751182301979,-504.67,0.00028835,3]
[368457739,1751182301988,-490.0,0.00028835,3]
[368457740,1751182301998,-490.0,0.00028835,3]
[368457741,1751182302007,-490.0,0.00028835,3]
[368457742,1751182302016,-571.46,0.00028835,3]
[368457743,1751182302026,-491.2,0.00028835,3]
[368457744,1751182302035,-490.0,0.00028835,3]
[368457745,1751182302045,-490.0,0.00028835,3]
[368457746,1751182302055,-529.72026219,0.00028835,3]
[368457747,1751182302064,-914.08,0.00028835,3]
[368457748,1751182302074,-490.0,0.00028835,3]
[368457749,1751182302084,-490.0,0.00028835,3]
[368457750,1751182302094,-1598.03,0.00028835,3]
[368457751,1751182302103,-560.03,0.00028835,3]
[368457752,1751182302113,-490.0,0.00028835,3]
[368457753,1751182302124,-490.0,0.00028835,3]
[368457754,1751182302134,-2197.41,0.00028835,3]
[368457755,1751182302144,-490.0,0.00028835,3]
[368457756,1751182302153,-1521.71,0.00028835,3]
[368457757,1751182302163,-938.22,0.00028835,3]
[368457758,1751182302172,-1941.8,0.00028835,3]
[368457759,1751182302183,-490.0,0.00028835,3]
[368457760,1751182302194,-780.19,0.00028835,3]
[368457761,1751182302204,-490.0,0.00028835,3]
[368457762,1751182302213,-490.0,0.00028835,3]
[368457763,1751182302223,-2180.27,0.00028835,3]
[368457764,1751182302233,-504.24,0.00028835,3]
[368457765,1751182302243,-490.0,0.00028835,3]
[368457766,1751182302253,-490.0,0.00028835,3]
[368457767,1751182302262,-835.78,0.00028835,3]
[368457768,1751182302272,-490.0,0.00028835,3]
[368457769,1751182302282,-504.61,0.00028835,3]
[368457770,1751182302292,-2659.93,0.00028835,3]
[368457771,1751182302302,-490.0,0.00028835,3]
[368457772,1751182302311,-2182.16,0.00028835,3]
[368457773,1751182302326,-490.0,0.00028835,3]
[368457774,1751182302337,-1937.08,0.00028835,3]
[368457775,1751182302347,-490.0,0.00028835,3]
[368457776,1751182302359,-3046.88,0.00028835,3]
[368457777,1751182302372,-490.0,0.00028835,3]
[368457778,1751182302384,-269.87284934,0.00028835,3]
[368457779,1751182303077,-3197.92,0.00028156,3]
[368457780,1751182303087,-734.21715066,0.00028835,3]
[368457781,1751182303096,-1607.35426608,0.00028835,3]
[368457782,1751182304351,-68.17493006,0.00027397,3]
[368457783,1751182304416,-421.82506994,0.00027397,3]
[368457784,1751182304426,-490.0,0.00027397,3]
[368457785,1751182304436,-177.44125519,0.00027397,3]
[368457786,1751182304968,-312.55874481,0.00027397,3]
[368457787,1751182304978,-551.05,0.00027604,3]
[368457788,1751182304988,-551.05,0.00027606,3]
[368457789,1751182304998,-490.0,0.00027607,3]
[368457790,1751182305007,-490.0,0.00027607,3]
[368457791,1751182305017,-529.88005238,0.00027607,3]
[368457792,1751182456265,155.7,0.00013699,2]
[368457891,1751182782829,364.67210393,0.0002,2]
[368457892,1751183307867,-267.59787966,0.00022397,2]
[368457893,1751183311830,-138.40212034,0.00022397,2]
[368457898,1751183431563,-150.0,0.000247,2]
[368457899,1751183431573,-151.32397669,0.00025248,2]
[368457900,1751183431582,-250.0,0.00025737,2]
[368457901,1751183431592,-250.0,0.00025737,2]
[368457902,1751183431602,-180.14958781,0.00025767,2]
[368457903,1751183431611,-200.0,0.00026337,7]
[368457904,1751183431620,-202.22,0.00026473,2]
[368457905,1751183431630,-168.35,0.00026517,2]
[368457906,1751183431639,-233.52,0.00026669,2]
[368457907,1751183431649,-1000.0,0.00026881,2]
[368457908,1751183431659,-202.92775587,0.000269,16]
[368457909,1751183431668,-152.0,0.00026955,3]
[368457910,1751183431678,-4095.24734673,0.00027,2]
[368457911,1751183431687,-2148.78438368,0.000271,5]
[368457912,1751183431697,-841.89035636,0.0002716,3]
[368458013,1751183437556,-293.3188722,0.0002716,3]
[368458014,1751183437568,-364.79077144,0.0002716,3]
[368458015,1751183437579,-202.92775587,0.00027216,16]
[368458016,1751183437588,-337.3753646,0.0002725,3]
[368458017,1751183437600,-296.64736419,0.0002725,3]
[368458018,1751183437616,-865.97727121,0.0002725,3]
[368458019,1751183437626,-1839.76843716,0.00027294,2]
[368458020,1751183437878,-257.97850835,0.00027294,2]
[368458690,1751183445697,-3194.30243513,0.00027294,2]
[368458767,1751183525259,155.7,0.00013699,2]
[368458769,1751183669650,189.92,0.00026391,120]
[368458770,1751183733832,2000.0,0.00027397,120]
[368458771,1751183827947,7010.40471546,0.00015,50]
[368459438,1751184383771,500.0,0.00027397,120]
[368459448,1751184396906,500.0,0.00027397,120]
[368459449,1751184397622,-194.60193523,0.00025767,2]
[368459450,1751184397645,-20.20064193,0.00025855,2]
[368459508,1751184527052,155.7,0.00013699,2]
[368459531,1751184631770,-802.537679,0.00025725,2]
[368459532,1751184631781,-147.79935807,0.00025855,2]
[368459533,1751184631791,-202.22,0.00026285,2]
[368459534,1751184631801,-168.0,0.00026305,2]
[368459535,1751184631811,-168.35,0.00026318,2]
[368459536,1751184631820,-274.83,0.00026355,2]
[368459537,1751184631830,-343.42,0.00026406,2]
[368459538,1751184631840,-194.6,0.00026504,2]
[368459539,1751184631850,-1000.0,0.00026504,2]
[368459540,1751184631860,-500.0,0.000267,9]
[368459541,1751184631870,-168.0,0.00026709,2]
[368459542,1751184631880,-1074.75608655,0.000268,9]
[368459543,1751184631912,-25.24391345,0.000268,9]
[368459544,1751184631922,-657.05883056,0.000269,9]
[368459545,1751184631934,-310.17040042,0.000269,9]
[368459546,1751184632035,-732.77076902,0.000269,9]
[368459547,1751184632046,-25.00610943,0.000269,16]
[368459548,1751184632058,-372.18235133,0.000269,16]
[368459549,1751184632067,-577.63028141,0.00026987,2]
[368459567,1751184638002,-568.5394705,0.00026987,2]
[368459568,1751184638012,-300.0,0.00026995,2]
[368459569,1751184638022,-474.5921,0.00026996,2]
[368459570,1751184638031,-1000.0,0.00026996,2]
[368459571,1751184638041,-1111.4734255,0.00026997,2]
[368459572,1751184638050,-1542.4753,0.0002702,2]
[368459573,1751184638060,-3265.87391273,0.00027086,4]
[368459574,1751184638074,-1201.52476251,0.00027086,4]
[368459575,1751184638086,-1965.30427423,0.00027086,4]
[368459576,1751184638097,-1722.45027064,0.00027086,4]
[368459577,1751184638108,-256.8745783,0.00027086,4]
[368459578,1751184638121,-14965.45920663,0.00027086,4]
[368459784,1751184640108,-5254.49045525,0.00027086,4]
[368459788,1751184640120,-427.39638274,0.00027086,4]
[368459872,1751184640541,-294.18392343,0.00027086,4]
[368459875,1751184640553,-904.45339935,0.00027086,4]
[368459880,1751184640564,-1361.6840251,0.00027086,4]
[368460908,1751184835207,-444.63190264,0.00026318,2]
[368460909,1751184840121,-180.25,0.00026318,2]
[368460910,1751184842392,-235.87695789,0.00026318,2]
[368460911,1751184844616,-139.24113947,0.00026318,2]
[368460912,1751184844647,-112.87719591,0.00026323,2]
[368460913,1751184846190,-49.28280409,0.00026323,2]
[368460915,1751184849400,-167.36016629,0.00026986,2]
[368460916,1751184849423,-52.88627505,0.00026986,2]
[368460917,1751184856053,-381.49499731,0.00026986,2]
[368460936,1751185021293,-168.0,0.00025832,2]
[368460973,1751185423202,4900.0,0.00027397,120]
[368460976,1751185497943,155.7,0.00013699,2]
[368460998,1751185831842,-202.0,0.00025397,2]
[368460999,1751185831852,-162.16,0.00025986,2]
[368461000,1751185831863,-165.96,0.00026295,2]
[368461001,1751185831873,-165.96,0.00026322,2]
[368461002,1751185831883,-165.96,0.00026348,2]
[368461003,1751185831893,-165.96,0.00026374,2]
[368461004,1751185831903,-165.96,0.00026401,2]
[368461005,1751185831912,-165.96,0.00026427,2]
[368461006,1751185831922,-400.0,0.000266,9]
[368461007,1751185831932,-500.0,0.000266,9]
[368461008,1751185831941,-367.42963337,0.000267,9]
[368461009,1751185831957,-432.57036663,0.000267,9]
[368461010,1751185831966,-1025.3906108,0.000267,9]
[368461011,1751185831978,-74.6093892,0.000267,9]
[368461012,1751185831987,-1288.76223581,0.000268,9]
[368461013,1751185831999,-11.23776419,0.000268,9]
[368461014,1751185832009,-836.58150074,0.000268,9]
[368461015,1751185832040,-863.41849926,0.000268,9]
[368461016,1751185832049,-167.36016629,0.00026886,2]
[368461017,1751185832058,-1086.59263293,0.000269,9]
[368461018,1751185832115,-613.40736707,0.000269,9]
[368461019,1751185832124,-411.00587944,0.000269,16]
[368461020,1751185832133,-2200.0,0.000269,9]
[368461021,1751185832143,-1000.0,0.00026955,2]
[368461022,1751185832152,-851.0781705,0.00026955,2]
[368461023,1751185832163,-557.74015302,0.00026955,2]
[368461047,1751185837863,-2281.87364935,0.00026955,2]
[368461048,1751185837919,-540.86227176,0.00026955,2]
[368461049,1751185837973,-768.44575537,0.00026955,2]
[368461050,1751185837983,-2649.68059528,0.00026955,2]
[368461051,1751185838081,-2018.95940472,0.00026955,2]
[368461052,1751185838090,-1000.0,0.00026955,2]
[368461053,1751185838100,-152.63619725,0.00026955,2]
[368461054,1751185838110,-2044.84373629,0.00026955,2]
[368461055,1751185838119,-152.0,0.00026955,3]
[368461056,1751185838128,-411.10794656,0.00026975,2]
[368461057,1751185838137,-923.859,0.00026975,15]
[368461058,1751185838146,-176.81704095,0.00026975,15]
[368461059,1751185838156,-152.0,0.00026976,2]
[368461060,1751185838165,-22510.1519058,0.00026985,4]
[368461061,1751185838175,-840361.47105769,0.00026985,4]
[368461062,1751185838185,-21478.775,0.00026986,2]
[368461063,1751185838194,-65.61872764,0.00026986,2]
[368461064,1751185838203,-1430.39213,0.0002702,2]
[368461065,1751185838213,-2044.84373629,0.00027023,2]
[368461066,1751185838222,-58352.3744532,0.00027045,2]
[368461067,1751185838232,-1965.0931754,0.0002705,2]
[368461068,1751185838245,-16567.68061936,0.00027069,2]
[368461070,1751185838255,-411.00587923,0.00027072,16]
[368461072,1751185838264,-2044.84373629,0.00027092,2]
[368461074,1751185838273,-49702.89,0.00027097,2]
[368461076,1751185838283,-1965.09317534,0.00027138,2]
[368461078,1751185838293,-2044.84373629,0.0002716,2]
[368461079,1751185838302,-168.0,0.00027197,2]
[368461081,1751185838311,-1800.0,0.000272,2]
[368461083,1751185838320,-168.0,0.00027204,2]
[368461085,1751185838329,-1965.09317534,0.00027227,2]
[368461087,1751185838339,-2044.84373629,0.00027229,2]
[368461089,1751185838348,-411.00587923,0.00027245,16]
[368461091,1751185838357,-178.42522448,0.00027252,2]
[368461093,1751185838366,-290.9,0.00027252,2]
[368461094,1751185838375,-207.4,0.00027252,2]
[368461095,1751185838384,-152.63619725,0.00027261,2]
[368461097,1751185838394,-1432.0662055,0.00027287,2]
[368461099,1751185838403,-156.41229016,0.00027297,2]
[368461101,1751185838412,-395.27933712,0.00027297,2]
[368461103,1751185838422,-2044.84373629,0.00027297,2]
[368461104,1751185838431,-1000.0,0.000273,3]
[368461106,1751185838441,-3296.93549948,0.000273,5]
[368461108,1751185838450,-1965.09317534,0.00027315,2]
[368461110,1751185838459,-1500.0,0.0002732,3]
[368461112,1751185838469,-2044.84373629,0.00027366,2]
[368461114,1751185838478,-150.0,0.00027369,30]
[368461116,1751185838488,-49702.89,0.00027371,2]
[368461118,1751185838497,-381.74382364,0.00027373,2]
[368461120,1751185838507,-500.0,0.00027373,2]
[368461122,1751185838516,-500.0,0.00027373,2]
[368461124,1751185838525,-504.53923254,0.00027373,2]
[368461126,1751185838535,-301.49169626,0.00027373,2]
[368461128,1751185838544,-159.727904,0.00027373,2]
[368461130,1751185838553,-503.04048633,0.00027373,2]
[368461132,1751185838563,-502.37246911,0.00027373,2]
[368461134,1751185838573,-500.0,0.00027373,2]
[368461136,1751185838582,-500.0,0.00027373,2]
[368461138,1751185838591,-348.32153829,0.00027373,2]
[368461140,1751185838602,-502.48346111,0.00027373,2]
[368461142,1751185838611,-500.0,0.00027373,2]
[368461144,1751185838620,-500.0,0.00027373,2]
[368461146,1751185838629,-501.37972873,0.00027373,2]
[368461148,1751185838639,-502.92886428,0.00027373,2]
[368461150,1751185838648,-500.0,0.00027373,2]
[368461152,1751185838657,-500.0,0.00027373,2]
[368461154,1751185838667,-152.0,0.00027387,2]
[368461156,1751185838676,-152.0,0.00027387,2]
[368461158,1751185838685,-190.33446528,0.00027387,2]
[368461160,1751185838695,-151.83979737,0.00027395,32]
[368461161,1751185838704,-155.0,0.00027396,2]
[368461163,1751185838714,-155.0,0.00027396,2]
[368461165,1751185838723,-223270.72521052,0.00027397,2]
[368461167,1751185838733,-332.40046583,0.00027397,2]
[368461170,1751185838743,-501.91,0.00027397,3]
[368461172,1751185838753,-490.0,0.00027397,3]
[368461174,1751185838762,-490.0,0.00027397,3]
[368461175,1751185838771,-490.0,0.00027397,3]
[368461177,1751185838780,-490.0,0.00027397,3]
[368461179,1751185838790,-490.0,0.00027397,3]
[368461181,1751185838799,-490.0,0.00027397,3]
[368461183,1751185838809,-461.02138013,0.00027397,3]
[368461185,1751185838818,-490.0,0.00027397,3]
[368461187,1751185838829,-641.4,0.00027397,3]
[368461199,1751185838932,-618.7,0.00027397,3]
[368461201,1751185838943,-768.61,0.00027397,3]
[368461203,1751185838952,-490.0,0.00027397,3]
[368461205,1751185838961,-490.0,0.00027397,3]
[368461207,1751185838971,-490.0,0.00027397,3]
[368461209,1751185838980,-490.0,0.00027397,3]
[368461211,1751185838989,-294.18006084,0.00027397,3]
[368461213,1751185838998,-490.0,0.00027397,3]
[368461215,1751185839008,-490.0,0.00027397,3]
[368461217,1751185839017,-490.0,0.00027397,3]
[368461218,1751185839027,-490.0,0.00027397,3]
[368461220,1751185839036,-490.0,0.00027397,3]
[368461222,1751185839045,-875.72,0.00027397,3]
[368461224,1751185839054,-490.0,0.00027397,3]
[368461226,1751185839063,-490.0,0.00027397,3]
[368461228,1751185839072,-490.0,0.00027397,3]
[368461230,1751185839081,-490.0,0.00027397,3]
[368461232,1751185839090,-527.22195774,0.00027397,3]
[368461234,1751185839099,-490.0,0.00027397,3]
[368461236,1751185839108,-490.0,0.00027397,3]
[368461238,1751185839117,-743.65,0.00027397,3]
[368461240,1751185839126,-490.0,0.00027397,3]
[368461242,1751185839135,-490.0,0.00027397,3]
[368461244,1751185839145,-490.0,0.00027397,3]
[368461246,1751185839154,-490.0,0.00027397,3]
[368461248,1751185839162,-404.5712414,0.00027397,3]
[368461250,1751185839171,-490.0,0.00027397,3]
[368461252,1751185839180,-490.0,0.00027397,3]
[368461254,1751185839188,-490.0,0.00027397,3]
[368461256,1751185839197,-498.27941426,0.00027397,3]
[368461258,1751185839206,-490.0,0.00027397,3]
[368461260,1751185839215,-507.67,0.00027397,3]
[368461262,1751185839224,-490.0,0.00027397,3]
[368461264,1751185839236,-390.20932361,0.00027397,3]
[368461266,1751185839246,-490.0,0.00027397,3]
[368461268,1751185839255,-297.03649342,0.00027397,3]
[368461270,1751185839264,-490.0,0.00027397,3]
[368461272,1751185839273,-490.0,0.00027397,3]
[368461274,1751185839283,-546.74699607,0.00027397,3]
[368461275,1751185839292,-933.53,0.00027397,3]
[368461277,1751185839301,-490.0,0.00027397,3]
[368461279,1751185839312,-490.0,0.00027397,2]
[368461281,1751185839321,-490.0,0.00027397,3]
[368461283,1751185839330,-490.0,0.00027397,3]
[368461285,1751185839339,-320.0,0.00027397,3]
[368461286,1751185839348,-490.0,0.00027397,3]
[368461288,1751185839358,-522.1001005,0.00027397,3]
[368461290,1751185839367,-490.0,0.00027397,3]
[368461291,1751185839375,-490.0,0.00027397,3]
[368461293,1751185839384,-490.0,0.00027397,3]
[368461295,1751185839393,-476.82891858,0.00027397,3]
[368461296,1751185839402,-490.0,0.00027397,3]
[368461298,1751185839411,-490.0,0.00027397,3]
[368461300,1751185839421,-490.0,0.00027397,3]
[368461302,1751185839430,-490.0,0.00027397,3]
[368461304,1751185839440,-490.0,0.00027397,3]
[368461305,1751185839450,-490.0,0.00027397,3]
[368461307,1751185839459,-490.0,0.00027397,3]
[368461309,1751185839469,-490.0,0.00027397,3]
[368461311,1751185839478,-490.0,0.00027397,3]
[368461312,1751185839487,-324.65686095,0.00027397,3]
[368461314,1751185839497,-633.3092198,0.00027397,3]
[368461316,1751185839506,-1110.01,0.00027397,3]
[368461318,1751185839515,-186.45885594,0.00027397,3]
[368461320,1751185839523,-490.0,0.00027397,3]
[368461321,1751185839532,-490.0,0.00027397,3]
[368461323,1751185839541,-490.0,0.00027397,3]
[368461325,1751185839551,-480.00538066,0.00027397,3]
[368461327,1751185839560,-757.58,0.00027397,3]
[368461328,1751185839569,-490.0,0.00027397,3]
[368461330,1751185839578,-490.0,0.00027397,3]
[368461332,1751185839587,-490.0,0.00027397,3]
[368461333,1751185839596,-642.86,0.00027397,3]
[368461335,1751185839605,-490.0,0.00027397,3]
[368461337,1751185839614,-188.87261783,0.00027397,3]
[368461339,1751185839623,-490.0,0.00027397,3]
[368461341,1751185839632,-501.64510532,0.00027397,3]
[368461342,1751185839641,-490.0,0.00027397,3]
[368461344,1751185839650,-491.61318806,0.00027397,3]
[368461346,1751185839659,-490.0,0.00027397,3]
[368461347,1751185839668,-490.0,0.00027397,3]
[368461349,1751185839677,-490.0,0.00027397,3]
[368461351,1751185839686,-490.0,0.00027397,3]
[368461353,1751185839695,-490.0,0.00027397,3]
[368461355,1751185839704,-1253.74,0.00027397,3]
[368461356,1751185839714,-490.0,0.00027397,3]
[368461358,1751185839723,-490.0,0.00027397,3]
[368461360,1751185839733,-490.0,0.00027397,3]
[368461362,1751185839742,-490.0,0.00027397,3]
[368461364,1751185839750,-1150.98,0.00027397,3]
[368461366,1751185839760,-1167.62,0.00027397,3]
[368461368,1751185839770,-617.2,0.00027397,3]
[368461369,1751185839780,-540.05,0.00027397,3]
[368461371,1751185839789,-490.0,0.00027397,3]
[368461373,1751185839798,-490.0,0.00027397,3]
[368461375,1751185839808,-664.68,0.00027397,3]
[368461377,1751185839817,-195227.17,0.00027397,3]
[368461378,1751185839826,-506.70491406,0.00027397,3]
[368461380,1751185839836,-529.16609247,0.00027397,3]
[368461382,1751185839846,-490.0,0.00027397,3]
[368461384,1751185839855,-490.0,0.00027397,3]
[368461385,1751185839864,-490.0,0.00027397,3]
[368461387,1751185839873,-490.0,0.00027397,3]
[368461389,1751185839882,-303.10021533,0.00027397,3]
[368461391,1751185839891,-490.0,0.00027397,3]
[368461393,1751185839901,-490.0,0.00027397,3]
[368461394,1751185839911,-214.56880837,0.00027397,3]
[368461396,1751185839920,-200.0,0.00027397,2]
[368461398,1751185839930,-490.0,0.00027397,3]
[368461400,1751185839939,-750.62,0.00027397,3]
[368461401,1751185839948,-648.23,0.00027397,3]
[368461403,1751185839958,-490.0,0.00027397,3]
[368461405,1751185839967,-490.0,0.00027397,3]
[368461407,1751185839976,-490.0,0.00027397,3]
[368461409,1751185839985,-490.0,0.00027397,3]
[368461411,1751185839994,-490.0,0.00027397,3]
[368461413,1751185840004,-490.0,0.00027397,3]
[368461415,1751185840013,-336.49364716,0.00027397,3]
[368461417,1751185840022,-490.0,0.00027397,3]
[368461419,1751185840032,-490.0,0.00027397,3]
[368461420,1751185840041,-490.0,0.00027397,3]
[368461422,1751185840050,-490.0,0.00027397,3]
[368461424,1751185840060,-490.0,0.00027397,3]
[368461426,1751185840068,-534.53,0.00027397,3]
[368461428,1751185840078,-490.0,0.00027397,3]
[368461429,1751185840087,-490.0,0.00027397,3]
[368461431,1751185840096,-637.25,0.00027397,3]
[368461433,1751185840106,-490.0,0.00027397,3]
[368461435,1751185840116,-294.00221367,0.00027397,3]
[368461437,1751185840126,-578.41,0.00027397,3]
[368461439,1751185840135,-838.78,0.00027397,3]
[368461441,1751185840144,-1139.38,0.00027397,3]
[368461442,1751185840154,-490.0,0.00027397,3]
[368461444,1751185840163,-490.0,0.00027397,3]
[368461446,1751185840172,-490.0,0.00027397,3]
[368461448,1751185840181,-856.2,0.00027397,3]
[368461450,1751185840191,-490.0,0.00027397,3]
[368461452,1751185840201,-490.0,0.00027397,3]
[368461454,1751185840210,-631.06788628,0.00027397,3]
[368461455,1751185840219,-490.0,0.00027397,3]
[368461457,1751185840228,-490.0,0.00027397,3]
[368461459,1751185840240,-490.0,0.00027397,3]
[368461461,1751185840249,-594.76,0.00027397,3]
[368461463,1751185840258,-1316.38,0.00027397,3]
[368461465,1751185840267,-490.0,0.00027397,3]
[368461466,1751185840276,-490.0,0.00027397,3]
[368461468,1751185840285,-169.13029899,0.00027397,3]
[368461470,1751185840293,-490.0,0.00027397,3]
[368461472,1751185840302,-490.0,0.00027397,3]
[368461473,1751185840311,-490.0,0.00027397,3]
[368461475,1751185840321,-490.0,0.00027397,3]
[368461477,1751185840330,-490.0,0.00027397,3]
[368461478,1751185840339,-599.46,0.00027397,3]
[368461480,1751185840349,-490.0,0.00027397,3]
[368461482,1751185840358,-490.0,0.00027397,3]
[368461484,1751185840367,-490.0,0.00027397,3]
[368461486,1751185840376,-490.0,0.00027397,3]
[368461488,1751185840385,-490.0,0.00027397,3]
[368461489,1751185840393,-490.0,0.00027397,3]
[368461491,1751185840403,-490.0,0.00027397,3]
[368461493,1751185840412,-490.0,0.00027397,3]
[368461495,1751185840421,-490.0,0.00027397,3]
[368461497,1751185840430,-490.0,0.00027397,3]
[368461499,1751185840440,-490.0,0.00027397,3]
[368461501,1751185840449,-516.42229527,0.00027397,3]
[368461502,1751185840458,-930.94,0.00027397,3]
[368461504,1751185840467,-490.0,0.00027397,3]
[368461506,1751185840476,-490.0,0.00027397,3]
[368461508,1751185840485,-742.17,0.00027397,3]
[368461510,1751185840494,-817.46,0.00027397,3]
[368461512,1751185840503,-430.63839476,0.00027397,3]
[368461514,1751185840513,-490.0,0.00027397,3]
[368461515,1751185840522,-490.0,0.00027397,3]
[368461517,1751185840532,-490.0,0.00027397,3]
[368461519,1751185840541,-490.0,0.00027397,3]
[368461521,1751185840550,-490.0,0.00027397,3]
[368461523,1751185840560,-490.0,0.00027397,3]
[368461525,1751185840570,-490.0,0.00027397,3]
[368461527,1751185840579,-607.43,0.00027397,3]
[368461529,1751185840589,-490.0,0.00027397,3]
[368461530,1751185840598,-490.0,0.00027397,3]
[368461532,1751185840607,-490.0,0.00027397,3]
[368461534,1751185840617,-490.0,0.00027397,3]
[368461536,1751185840627,-639.03,0.00027397,3]
[368461538,1751185840636,-490.0,0.00027397,3]
[368461540,1751185840646,-1082.21,0.00027397,3]
[368461542,1751185840655,-490.0,0.00027397,3]
[368461543,1751185840666,-774.03,0.00027397,3]
[368461545,1751185840675,-490.0,0.00027397,3]
[368461547,1751185840685,-490.0,0.00027397,3]
[368461549,1751185840695,-490.0,0.00027397,3]
[368461551,1751185840704,-494.75788022,0.00027397,3]
[368461553,1751185840714,-490.0,0.00027397,3]
[368461555,1751185840722,-490.0,0.00027397,3]